fUSD/lending_fUSD_20260218
["ID","MTS","AMOUNT","RATE_DAILY","PERIOD"]
[405899764,1771411845720,-500.0,0.00014,2]
[405899765,1771411845730,-1600.0,0.00014,2]
[405899766,1771411845742,-2200.0,0.00014,2]
[405899767,1771411845752,-3800.0,0.00014,2]
[405899768,1771411845762,-500.0,0.00014,2]
[405899769,1771411845772,-500.0,0.00014,2]
[405899770,1771411845781,-1600.0,0.00014,2]
[405899771,1771411845790,-2200.0,0.00014,2]
[405899772,1771411845800,-3800.0,0.00014,2]
[405899773,1771411845810,-500.0,0.00014,2]
[405899774,1771411845820,-500.0,0.00014,2]
[405899775,1771411845830,-1600.0,0.00014,2]
[405899776,1771411845840,-2200.0,0.00014,2]
[405899777,1771411845850,-3800.0,0.00014,2]
[405899779,1771411845860,-500.0,0.00014,2]
[405899781,1771411845870,-500.0,0.00014,2]
[405899783,1771411845879,-500.0,0.00014,2]
[405899785,1771411845888,-1600.0,0.00014,2]
[405899786,1771411845898,-2200.0,0.00014,2]
[405899787,1771411845907,-3800.0,0.00014,2]
[405899788,1771411845917,-500.0,0.00014,2]
[405899789,1771411845927,-1600.0,0.00014,2]
[405899790,1771411845939,-2200.0,0.00014,2]
[405899791,1771411845950,-3800.0,0.00014,2]
[405899792,1771411845961,-810.0,0.00014,2]
[405899793,1771411845974,-500.0,0.00014,2]
[405899794,1771411845984,-514.06442359,0.00014,2]
[405899795,1771411845995,-2200.0,0.00014,2]
[405899796,1771411846005,-483.72863295,0.00014,2]
[405899797,1771411846014,-1600.0,0.00014,2]
[405899798,1771411846025,-2300.0,0.00014,2]
[405899799,1771411846035,-3800.0,0.00014,2]
[405899800,1771411846044,-500.0,0.00014,2]
[405899801,1771411846054,-322.36321151,0.00014,2]
[405899802,1771411846064,-1600.0,0.00014,2]
[405899803,1771411846074,-2200.0,0.00014,2]
[405899804,1771411846085,-2300.0,0.00014,2]
[405899805,1771411846095,-3800.0,0.00014,2]
[405899806,1771411846104,-7500.0,0.00014,2]
[405899807,1771411846113,-389.61327066,0.00014,2]
[405899808,1771411846123,-1600.0,0.00014,2]
[405899809,1771411846133,-2200.0,0.00014,2]
[405899810,1771411846142,-2300.0,0.00014,2]
[405899811,1771411846153,-3800.0,0.00014,2]
[405899812,1771411846163,-7500.0,0.00014,2]
[405899813,1771411846174,-1600.0,0.00014,2]
[405899814,1771411846183,-2200.0,0.00014,2]
[405899815,1771411846193,-2300.0,0.00014,2]
[405899816,1771411846203,-3800.0,0.00014,2]
[405899817,1771411846212,-7500.0,0.00014,2]
[405899818,1771411846222,-1600.0,0.00014,2]
[405899819,1771411846231,-2200.0,0.00014,2]
[405899820,1771411846241,-3800.0,0.00014,2]
[405899821,1771411846250,-7500.0,0.00014,2]
[405899822,1771411846260,-2200.0,0.00014,2]
[405899823,1771411846269,-1600.0,0.00014,2]
[405899824,1771411846278,-3800.0,0.00014,2]
[405899825,1771411846288,-7500.0,0.00014,2]
[405899826,1771411846298,-2200.0,0.00014,2]
[405899827,1771411846307,-2300.0,0.00014,2]
[405899828,1771411846316,-1600.0,0.00014,2]
[405899829,1771411846326,-7500.0,0.00014,2]
[405899830,1771411846335,-7500.0,0.00014,2]
[405899831,1771411846344,-2300.0,0.00014,2]
[405899832,1771411846353,-7500.0,0.00014,2]
[405899833,1771411846362,-2300.0,0.00014,2]
[405899834,1771411846371,-746.51063578,0.00014,2]
[405899835,1771411846380,-500.0,0.00014,2]
[405899836,1771411846390,-500.0,0.00014,2]
[405899837,1771411846399,-7500.0,0.00014,2]
[405899838,1771411846409,-173.41455475,0.00014,2]
[405899839,1771411846419,-285.67392356,0.00014,2]
[405899840,1771411846428,-168.70352471,0.00014,2]
[405899841,1771411846437,-2300.0,0.00014,2]
[405899842,1771411846447,-1000.0,0.00014,2]
[405899843,1771411846456,-500.0,0.00014,2]
[405899844,1771411846470,-500.0,0.00014,2]
[405899845,1771411846479,-7500.0,0.00014,2]
[405899846,1771411846489,-202.72821533,0.00014,2]
[405899847,1771411846498,-392.76826941,0.00014,2]
[405899848,1771411846509,-2300.0,0.00014,2]
[405899849,1771411846520,-1000.0,0.00014,2]
[405899850,1771411846529,-500.0,0.00014,2]
[405899851,1771411846540,-7500.0,0.00014,2]
[405899852,1771411846550,-2300.0,0.00014,2]
[405899853,1771411846560,-1000.0,0.00014,2]
[405899854,1771411846570,-500.0,0.00014,2]
[405899855,1771411846579,-500.0,0.00014,2]
[405899856,1771411846588,-7500.0,0.00014,2]
[405899857,1771411846598,-2300.0,0.00014,2]
[405899858,1771411846608,-1000.0,0.00014,2]
[405899859,1771411846618,-7500.0,0.00014,2]
[405899860,1771411846628,-2300.0,0.00014,2]
[405899861,1771411846638,-1000.0,0.00014,2]
[405899862,1771411846647,-7500.0,0.00014,2]
[405899863,1771411846657,-1000.0,0.00014,2]
[405899864,1771411846666,-500.0,0.00014,2]
[405899865,1771411846676,-7500.0,0.00014,2]
[405899866,1771411846685,-500.0,0.00014,2]
[405899867,1771411846695,-1000.0,0.00014,2]
[405899868,1771411846705,-500.0,0.00014,2]
[405899869,1771411846715,-500.0,0.00014,2]
[405899870,1771411846725,-700.0,0.00014,2]
[405899871,1771411846734,-1500.0,0.00014,2]
[405899872,1771411846743,-1000.0,0.00014,2]
[405899873,1771411846752,-898.13786328,0.00014,2]
[405899874,1771411846762,-223.32304254,0.00014,2]
[405899875,1771411846771,-187.43513762,0.00014,2]
[405899876,1771411846780,-500.0,0.00014,2]
[405899877,1771411846789,-500.0,0.00014,2]
[405899878,1771411846799,-839.81835804,0.00014,2]
[405899879,1771411846808,-1500.0,0.00014,2]
[405899880,1771411846817,-700.0,0.00014,2]
[405899881,1771411846826,-1000.0,0.00014,2]
[405899882,1771411846836,-500.0,0.00014,2]
[405899883,1771411846846,-2000.0,0.00014,2]
[405899884,1771411846856,-557.35975036,0.00014,2]
[405899885,1771411846866,-500.0,0.00014,2]
[405899886,1771411846875,-500.0,0.00014,2]
[405899887,1771411846885,-1500.0,0.00014,2]
[405899888,1771411846897,-700.0,0.00014,2]
[405899889,1771411846906,-1000.0,0.00014,2]
[405899890,1771411846915,-2000.0,0.00014,2]
[405899891,1771411846926,-500.0,0.00014,2]
[405899892,1771411846936,-1500.0,0.00014,2]
[405899893,1771411846946,-700.0,0.00014,2]
[405899894,1771411846955,-1000.0,0.00014,2]
[405899895,1771411846964,-2000.0,0.00014,2]
[405899896,1771411846973,-500.0,0.00014,2]
[405899897,1771411846982,-700.0,0.00014,2]
[405899898,1771411846992,-1000.0,0.00014,2]
[405899899,1771411847002,-2000.0,0.00014,2]
[405899900,1771411847011,-1500.0,0.00014,2]
[405899901,1771411847020,-700.0,0.00014,2]
[405899902,1771411847030,-500.0,0.00014,2]
[405899903,1771411847040,-1000.0,0.00014,2]
[405899904,1771411847049,-2000.0,0.00014,2]
[405899905,1771411847059,-1500.0,0.00014,2]
[405899906,1771411847068,-700.0,0.00014,2]
[405899907,1771411847078,-500.0,0.00014,2]
[405899908,1771411847088,-1000.0,0.00014,2]
[405899909,1771411847098,-2000.0,0.00014,2]
[405899910,1771411847107,-1500.0,0.00014,2]
[405899911,1771411847118,-500.0,0.00014,2]
[405899912,1771411847127,-700.0,0.00014,2]
[405899913,1771411847137,-2000.0,0.00014,2]
[405899914,1771411847147,-1500.0,0.00014,2]
[405899915,1771411847156,-500.0,0.00014,2]
[405899916,1771411847166,-700.0,0.00014,2]
[405899917,1771411847176,-2000.0,0.00014,2]
[405899918,1771411847186,-1500.0,0.00014,2]
[405899919,1771411847196,-500.0,0.00014,2]
[405899920,1771411847205,-500.0,0.00014,2]
[405899921,1771411847214,-700.0,0.00014,2]
[405899922,1771411847224,-2000.0,0.00014,2]
[405899923,1771411847233,-1500.0,0.00014,2]
[405899924,1771411847242,-700.0,0.00014,2]
[405899925,1771411847251,-2000.0,0.00014,2]
[405899926,1771411847260,-700.0,0.00014,2]
[405899927,1771411847270,-2000.0,0.00014,2]
[405899928,1771411847280,-1500.0,0.00014,2]
[405899929,1771411847499,-700.0,0.00014,2]
[405899930,1771411847510,-2000.0,0.00014,2]
[405899931,1771411847519,-1500.0,0.00014,2]
[405899932,1771411847528,-2000.0,0.00014,2]
[405899933,1771411847538,-1500.0,0.00014,2]
[405899934,1771411847547,-700.0,0.00014,2]
[405899935,1771411847556,-2000.0,0.00014,2]
[405899936,1771411847565,-1500.0,0.00014,2]
[405899937,1771411847574,-500.0,0.00014,2]
[405899938,1771411847583,-500.0,0.00014,2]
[405899939,1771411847594,-500.0,0.00014,2]
[405899940,1771411847604,-500.0,0.00014,2]
[405899941,1771411847615,-500.0,0.00014,2]
[405899942,1771411847624,-500.0,0.00014,2]
[405899943,1771411847635,-500.0,0.00014,2]
[405899944,1771411847645,-500.0,0.00014,2]
[405899945,1771411847654,-500.0,0.00014,2]
[405899946,1771411847664,-600.0,0.00014,2]
[405899947,1771411847674,-600.0,0.00014,2]
[405899948,1771411847683,-600.0,0.00014,2]
[405899949,1771411847692,-600.0,0.00014,2]
[405899950,1771411847701,-600.0,0.00014,2]
[405899951,1771411847710,-765.60339842,0.00014,2]
[405899952,1771411847719,-600.0,0.00014,2]
[405899953,1771411847728,-600.0,0.00014,2]
[405899954,1771411847737,-600.0,0.00014,2]
[405899955,1771411847747,-467.20117357,0.00014,2]
[405899956,1771411847756,-600.0,0.00014,2]
[405899957,1771411847765,-600.0,0.00014,2]
[405899958,1771411847774,-500.0,0.00014,2]
[405899959,1771411847783,-600.0,0.00014,2]
[405899960,1771411847792,-500.0,0.00014,2]
[405899961,1771411847801,-600.0,0.00014,2]
[405899962,1771411847810,-500.0,0.00014,2]
[405899963,1771411847819,-600.0,0.00014,2]
[405899964,1771411847828,-500.0,0.00014,2]
[405899965,1771411847837,-500.0,0.00014,2]
[405899966,1771411847846,-500.0,0.00014,2]
[405899967,1771411847855,-500.0,0.00014,2]
[405899968,1771411847864,-500.0,0.00014,2]
[405899969,1771411847875,-500.0,0.00014,2]
[405899970,1771411847885,-500.0,0.00014,2]
[405899971,1771411847896,-500.0,0.00014,2]
[405899972,1771411847906,-500.0,0.00014,2]
[405899973,1771411847917,-168.0,0.00014012,2]
[405899974,1771411847927,-168.0,0.00014086,2]
[405899975,1771411847936,-168.0,0.00014112,2]
[405899976,1771411847946,-168.0,0.00014168,2]
[405899977,1771411847957,-168.0,0.00014186,2]
[405899978,1771411847967,-166.66,0.00014232,2]
[405899979,1771411847978,-280.03725112,0.00014243,2]
[405899980,1771411847989,-233.51889341,0.00014243,2]
[405899981,1771411847999,-370.91026638,0.00014243,2]
[405899982,1771411848008,-1000.0,0.00014247,2]
[405899983,1771411848018,-500.0,0.00014247,2]
[405899984,1771411848027,-500.0,0.00014247,2]
[405899985,1771411848037,-1000.0,0.00014247,2]
[405899986,1771411848047,-1000.0,0.00014247,2]
[405899987,1771411848056,-1000.0,0.00014247,2]
[405899988,1771411848066,-1000.0,0.00014247,2]
[405899989,1771411848075,-1000.0,0.00014247,2]
[405899990,1771411848085,-1067.47328951,0.00014247,2]
[405899991,1771411848094,-1000.0,0.00014247,2]
[405899992,1771411848104,-505.28465419,0.00014247,2]
[405899993,1771411848114,-1000.0,0.00014247,2]
[405899994,1771411848124,-1000.0,0.00014247,2]
[405899995,1771411848135,-1000.0,0.00014247,2]
[405899996,1771411848144,-1000.0,0.00014247,2]
[405899997,1771411848154,-1000.0,0.00014247,2]
[405899998,1771411848164,-501.83349553,0.00014247,2]
[405899999,1771411848173,-1000.0,0.00014247,2]
[405900000,1771411848182,-336.6867508,0.00014247,2]
[405900001,1771411848191,-1000.0,0.00014247,2]
[405900002,1771411848200,-1000.0,0.00014247,2]
[405900003,1771411848209,-1000.0,0.00014247,2]
[405900004,1771411848220,-1000.0,0.00014247,2]
[405900005,1771411848229,-1000.0,0.00014247,2]
[405900006,1771411848239,-1000.0,0.00014247,2]
[405900007,1771411848249,-1000.0,0.00014247,2]
[405900008,1771411848259,-1000.0,0.00014247,2]
[405900009,1771411848268,-1000.0,0.00014247,2]
[405900010,1771411848277,-1000.0,0.00014247,2]
[405900011,1771411848286,-1000.0,0.00014247,2]
[405900012,1771411848294,-1000.0,0.00014247,2]
[405900013,1771411848303,-1000.0,0.00014247,2]
[405900014,1771411848312,-552.89419638,0.00014247,2]
[405900015,1771411848322,-1000.0,0.00014247,2]
[405900016,1771411848330,-1000.0,0.00014247,2]
[405900017,1771411848339,-503.00619934,0.00014247,2]
[405900018,1771411848351,-1003.65271303,0.00014247,2]
[405900019,1771411848361,-1000.0,0.00014247,2]
[405900020,1771411848370,-1001.64879923,0.00014247,2]
[405900021,1771411848380,-1000.0,0.00014247,2]
[405900022,1771411848388,-1000.0,0.00014247,2]
[405900023,1771411848397,-1000.0,0.00014247,2]
[405900024,1771411848406,-1105.0,0.00014286,2]
[405900025,1771411848417,-183.758244,0.00014327,7]
[405900026,1771411848428,-512.795799,0.00014327,7]
[405900027,1771411848437,-2251.56583335,0.00014411,2]
[405900028,1771411848447,-168.0,0.0001442,2]
[405900029,1771411848458,-502.0,0.00014424,2]
[405900030,1771411848468,-168.0,0.00014471,2]
[405900031,1771411848478,-174.42,0.00014496,2]
[405900032,1771411848487,-168.0,0.00014516,2]
[405900033,1771411848497,-168.0,0.00014568,2]
[405900034,1771411848507,-152.0,0.00014643,4]
[405900035,1771411848516,-1000.0,0.00014737,2]
[405900036,1771411848525,-168.0,0.00014773,2]
[405900037,1771411848534,-181.91708213,0.00014791,2]
[405900038,1771411848544,-242.15909246,0.00014791,2]
[405900039,1771411848553,-384.63394623,0.00014791,2]
[405900040,1771411848562,-524.16891164,0.00014795,2]
[405900041,1771411848571,-1456.56316713,0.00014795,2]
[405900042,1771411848580,-1500.0,0.00014795,2]
[405900043,1771411848589,-500.0,0.00014795,2]
[405900044,1771411848598,-1500.0,0.00014795,2]
[405900045,1771411848607,-1500.0,0.00014795,2]
[405900046,1771411848616,-500.0,0.00014795,2]
[405900047,1771411848625,-477.33821748,0.00014795,2]
[405900048,1771411848634,-1512.08661125,0.00014795,2]
[405900049,1771411848643,-1500.0,0.00014795,2]
[405900050,1771411848652,-1602.36130291,0.00014795,2]
[405900051,1771411848661,-534.53110943,0.00014795,2]
[405900052,1771411848670,-1037.4625703,0.00014795,2]
[405900053,1771411848679,-1500.0,0.00014795,2]
[405900054,1771411848687,-168.0,0.00014812,2]
[405900055,1771411848696,-502.0,0.00014825,2]
[405900056,1771411848705,-168.0,0.00014826,2]
[405900057,1771411848715,-168.0,0.00014859,2]
[405900058,1771411848724,-168.0,0.00014896,2]
[405900059,1771411848735,-168.0,0.000149,2]
[405900060,1771411848744,-1338.0,0.00014912,2]
[405900061,1771411848756,-617.0,0.00014912,2]
[405900062,1771411848765,-3492.0,0.00014912,2]
[405900063,1771411848774,-1164.0,0.00014912,2]
[405900064,1771411848783,-150.0,0.00014912,2]
[405900065,1771411848792,-1275.0,0.00014912,2]
[405900066,1771411848803,-412.0,0.00014912,2]
[405900067,1771411848813,-919.0,0.00014912,2]
[405900068,1771411848823,-502.0,0.00014937,2]
[405900069,1771411848832,-1105.0,0.00015001,2]
[405900070,1771411848843,-168.0,0.00015009,2]
[405900071,1771411848853,-1000.0,0.0001503,2]
[405900072,1771411848862,-502.0,0.00015052,2]
[405900073,1771411848872,-168.0,0.0001506,2]
[405900074,1771411848881,-168.0,0.00015109,2]
[405900075,1771411848891,-502.0,0.0001512,2]
[405900076,1771411848899,-538.2049,0.00015242,2]
[405900077,1771411848908,-187.78006525,0.00015335,2]
[405900078,1771411848917,-775.47832561,0.00015337,2]
[405900079,1771411848926,-621.78829552,0.00015337,2]
[405900080,1771411848935,-251.11897888,0.00015339,2]
[405900081,1771411848945,-398.86540225,0.00015339,2]
[405900082,1771411848953,-2000.0,0.00015342,2]
[405900083,1771411848963,-2000.0,0.00015342,2]
[405900084,1771411848972,-1721.59968024,0.00015342,2]
[405900085,1771411848981,-2000.0,0.00015342,2]
[405900086,1771411848990,-1191.23979414,0.00015342,2]
[405900087,1771411848999,-152.0,0.00015369,3]
[405900088,1771411849008,-1000.0,0.00015454,2]
[405900089,1771411849017,-2251.56583335,0.00015574,2]
[405900090,1771411849026,-482.75960727,0.00015632,2]
[405900091,1771411849036,-152.0,0.00015637,5]
[405900092,1771411849045,-1105.0,0.00015751,2]
[405900093,1771411849054,-150.0,0.00015755,2]
[405900094,1771411849063,-260.4103811,0.00015887,2]
[405900095,1771411849072,-279.93866255,0.0001589,2]
[405900096,1771411849081,-801.75028282,0.0001589,2]
[405900097,1771411849090,-2500.0,0.0001589,2]
[405900098,1771411849100,-166.56,0.00015914,2]
[405900099,1771411849109,-552.47642339,0.00015958,7]
[405900100,1771411849117,-575.0,0.00016,2]
[405900101,1771411849126,-200.0,0.00016,2]
[405900102,1771411849135,-166.55,0.00016006,2]
[405900103,1771411849144,-174.42,0.00016015,2]
[405900104,1771411849154,-482.75960727,0.00016023,2]
[405900105,1771411849164,-1400.0,0.00016082,2]
[405900106,1771411849174,-265.07,0.00016268,2]
[405900107,1771411849183,-37237.52246235,0.00016302,2]
[405900108,1771411849192,-500.0,0.00016356,2]
[405900109,1771411849201,-500.0,0.00016356,2]
[405900110,1771411849210,-47161.0,0.0001638,2]
[405900111,1771411849219,-482.75960727,0.00016413,2]
[405900112,1771411849228,-270.0455652,0.00016435,2]
[405900113,1771411849237,-3207.6,0.00016438,2]
[405900114,1771411849246,-1768.0,0.00016438,2]
[405900115,1771411849255,-569.98,0.00016438,2]
[405900116,1771411849265,-841.0,0.00016438,2]
[405900117,1771411849274,-227.84,0.00016438,2]
[405900118,1771411849283,-3000.0,0.00016438,2]
[405900119,1771411849291,-1768.0,0.00016493,2]
[405900120,1771411849300,-1768.0,0.00016548,2]
[405900121,1771411849310,-1000.0,0.00016552,2]
[405900122,1771411849318,-1768.0,0.00016602,2]
[405900123,1771411849328,-152.0,0.00016631,6]
[405900124,1771411849337,-575.0,0.00016646,2]
[405900125,1771411849347,-1768.0,0.00016657,2]
[405900126,1771411849356,-194.72792766,0.00016704,2]
[405900127,1771411849365,-1768.0,0.00016712,2]
[405900128,1771411849375,-3207.6,0.00016712,2]
[405900129,1771411849384,-841.0,0.00016712,2]
[405900130,1771411849393,-167.38,0.00016712,2]
[405900131,1771411849402,-2836.0,0.0001672,2]
[405900132,1771411849411,-842.0,0.0001672,2]
[405900133,1771411849420,-2836.0,0.0001672,2]
[405900134,1771411849429,-2828.0,0.0001672,2]
[405900135,1771411849438,-2251.56583335,0.00016737,2]
[405900136,1771411849447,-1768.0,0.00016767,2]
[405900137,1771411849456,-482.75960727,0.00016804,2]
[405900138,1771411849469,-1768.0,0.00016822,2]
[405900139,1771411849478,-151.0,0.00016824,2]
[405900140,1771411849487,-576.128709,0.00016824,2]
[405900141,1771411849496,-151.0,0.00016824,2]
[405900142,1771411849506,-576.128709,0.00016824,2]
[405900143,1771411849515,-576.128709,0.00016824,2]
[405900144,1771411849524,-576.128709,0.00016824,2]
[405900145,1771411849532,-1000.0,0.00016872,2]
[405900146,1771411849542,-1000.0,0.00016873,2]
[405900147,1771411849551,-1768.0,0.00016876,2]
[405900148,1771411849560,-47161.0,0.0001692,2]
[405900149,1771411849569,-815.043959,0.0001692,2]
[405900150,1771411849578,-815.043959,0.0001692,2]
[405900151,1771411849587,-815.043959,0.0001692,2]
[405900152,1771411849596,-815.043959,0.0001692,2]
[405900153,1771411849605,-166.56,0.00016931,2]
[405900154,1771411849614,-1768.0,0.00016931,2]
[405900155,1771411849623,-280.03725112,0.00016983,2]
[405900156,1771411849632,-1768.0,0.00016986,2]
[405900157,1771411849641,-3207.6,0.00016986,2]
[405900158,1771411849650,-841.0,0.00016986,2]
[405900159,1771411849659,-3500.0,0.00016986,2]
[405900160,1771411849667,-500.0,0.00017,5]
[405900161,1771411849677,-166.55,0.00017003,2]
[405900162,1771411849686,-160.0,0.0001704,2]
[405900163,1771411849695,-2836.0,0.0001704,2]
[405900164,1771411849705,-1768.0,0.00017041,2]
[405900165,1771411849714,-150.0,0.00017067,2]
[405900166,1771411849725,-1768.0,0.00017096,2]
[405900167,1771411849734,-155.72008061,0.00017096,2]
[405900168,1771411849742,-1427.43407233,0.00017096,2]
[405900169,1771411849751,-273.0,0.00017124,2]
[405900170,1771411849760,-1768.0,0.0001715,2]
[405900171,1771411849769,-155.72008061,0.00017178,2]
[405900172,1771411849778,-1427.43407233,0.00017178,2]
[405900173,1771411849788,-500.0,0.000172,2]
[405900174,1771411849796,-1768.0,0.00017205,2]
[405900175,1771411849805,-1427.43407233,0.00017233,2]
[405900176,1771411849814,-1768.0,0.0001726,2]
[405900177,1771411849823,-3207.6,0.0001726,2]
[405900178,1771411849832,-841.0,0.0001726,2]
[405900179,1771411849841,-155.72008061,0.0001726,2]
[405900180,1771411849849,-1000.0,0.0001726,2]
[405900181,1771411849858,-150.0,0.00017263,2]
[405900182,1771411849868,-150.0,0.00017264,2]
[405900183,1771411849877,-575.0,0.00017293,3]
[405900184,1771411849886,-1768.0,0.00017315,2]
[405900185,1771411849895,-1427.43407233,0.00017315,2]
[405900186,1771411849904,-155.72008061,0.00017342,2]
[405900187,1771411849912,-1406.97,0.00017359,2]
[405900188,1771411849921,-32853.2111,0.0001736,2]
[405900189,1771411849930,-1000.0,0.0001736,2]
[405900190,1771411849939,-160.0,0.0001736,2]
[405900191,1771411849948,-160.0,0.0001736,2]
[405900192,1771411849957,-2836.0,0.0001736,2]
[405900193,1771411849967,-2836.0,0.0001736,2]
[405900194,1771411849976,-278.178029,0.0001736,2]
[405900195,1771411849986,-278.178029,0.0001736,2]
[405900196,1771411849994,-278.178029,0.0001736,2]
[405900197,1771411850005,-278.178029,0.0001736,2]
[405900198,1771411850014,-352.373882,0.0001736,2]
[405900199,1771411850023,-352.373882,0.0001736,2]
[405900200,1771411850032,-352.373882,0.0001736,2]
[405900201,1771411850041,-352.373882,0.0001736,2]
[405900202,1771411850051,-1768.0,0.0001737,2]
[405900203,1771411850060,-1427.43407233,0.0001737,2]
[405900204,1771411850070,-150.0,0.00017378,2]
[405900205,1771411850079,-350.0,0.00017397,2]
[405900206,1771411850088,-500.0,0.000174,2]
[405900207,1771411850097,-150.0,0.00017423,2]
[405900208,1771411850107,-1768.0,0.00017424,2]
[405900209,1771411850116,-155.72008061,0.00017425,2]
[405900210,1771411850126,-150.0,0.00017432,2]
[405900211,1771411850135,-1629.76441726,0.0001745,2]
[405900212,1771411850145,-1400.0,0.00017452,7]
[405900213,1771411850154,-1427.43407233,0.00017452,2]
[405900214,1771411850164,-47161.0,0.0001746,2]
[405900215,1771411850172,-1768.0,0.00017479,2]
[405900216,1771411850182,-155.72008061,0.00017507,2]
[405900217,1771411850191,-1427.43407233,0.00017507,2]
[405900218,1771411850200,-290.39862941,0.00017531,2]
[405900219,1771411850210,-1768.0,0.00017534,2]
[405900220,1771411850219,-3207.6,0.00017534,2]
[405900221,1771411850228,-841.0,0.00017534,2]
[405900222,1771411850237,-1000.0,0.00017534,2]
[405900223,1771411850247,-1262.81883542,0.00017534,2]
[405900224,1771411850256,-152.0,0.00017579,3]
[405900225,1771411850265,-1768.0,0.00017589,2]
[405900226,1771411850274,-1427.43407233,0.00017589,2]
[405900227,1771411850283,-150.0,0.00017592,2]
[405900228,1771411850292,-500.0,0.000176,2]
[405900229,1771411850301,-175.2871213,0.00017602,4]
[405900230,1771411850310,-174.42,0.00017606,2]
[405900231,1771411850320,-150.0,0.00017614,2]
[405900232,1771411850328,-155.72008061,0.00017616,2]
[405900233,1771411850338,-152.0,0.00017625,7]
[405900234,1771411850347,-9467.27196271,0.0001764,2]
[405900235,1771411850356,-150.0,0.0001764,2]
[405900236,1771411850366,-1768.0,0.00017643,2]
[405900237,1771411850375,-1427.43407233,0.00017644,2]
[405900238,1771411850384,-150.0,0.00017665,2]
[405900239,1771411850393,-150.0,0.00017667,2]
[405900240,1771411850402,-150.0,0.00017676,2]
[405900241,1771411850411,-174.42,0.00017679,2]
[405900242,1771411850420,-842.0,0.0001768,2]
[405900243,1771411850429,-2836.0,0.0001768,2]
[405900244,1771411850438,-984.0,0.0001768,2]
[405900245,1771411850447,-2836.0,0.0001768,2]
[405900246,1771411850456,-1779.00422986,0.00017698,2]
[405900247,1771411850468,-155.72008061,0.00017699,2]
[405900248,1771411850478,-1582.1457329,0.000177,2]
[405900249,1771411850487,-1000.0,0.00017726,2]
[405900250,1771411850497,-1427.43407233,0.00017726,2]
[405900251,1771411850506,-2827.49,0.00017728,2]
[405900252,1771411850521,-2904.33208354,0.0001773,2]
[405900253,1771411850530,-1000.0,0.0001774,2]
[405900254,1771411850542,-1000.0,0.00017746,2]
[405900255,1771411850551,-1000.0,0.00017751,2]
[405900256,1771411850560,-1000.0,0.00017754,2]
[405900257,1771411850570,-1000.0,0.00017763,2]
[405900258,1771411850778,-1000.0,0.00017777,2]
[405900259,1771411850788,-1000.0,0.0001778,2]
[405900260,1771411850797,-155.72008061,0.00017781,2]
[405900261,1771411850806,-1427.43407233,0.00017781,2]
[405900262,1771411850815,-1000.0,0.00017781,2]
[405900263,1771411850824,-350.0,0.00017783,3]
[405900264,1771411850833,-1000.0,0.00017784,2]
[405900265,1771411850843,-150.0,0.00017789,2]
[405900266,1771411850852,-1000.0,0.000178,2]
[405900267,1771411850860,-500.0,0.000178,5]